bitfinex/quotes_ETHUSD_20251126
["timestamp","ask_amount","ask_price","bid_price","bid_amount"]
[1764181922156,0.72559411,3037.1,3036.6,0.001]
[1764181922387,8.36237082,3036.7,3036.6,0.001]
[1764181922592,9.38376893,3037.1,3036.6,0.001]
[1764181922752,0.308224,3037.0,3036.6,0.9755]
[1764181922958,0.308224,3036.9,3036.6,0.001]
[1764181923281,8.76787482,3036.7,3036.6,0.001]
[1764181923780,8.76787482,3036.7,3036.5,0.001]
[1764181923781,1.13109811,3036.6,3036.5,0.001]
[1764181924082,1.88291851,3036.6,3036.5,0.001]
[1764181924298,4.73687533,3036.6,3036.5,0.001]
[1764181924656,4.32697133,3036.6,3036.5,0.001]
[1764181924889,4.43663872,3036.6,3036.5,0.001]
[1764181925191,5.27804272,3036.6,3036.5,0.001]
[1764181926090,5.27804272,3036.6,3035.5,0.189]
[1764181926091,0.409904,3036.3,3035.5,0.189]
[1764181926263,0.405504,3035.7,3034.7,0.472]
[1764181926466,1.46819179,3035.7,3034.7,0.472]
[1764181926658,8.25267082,3035.3,3034.7,0.472]
[1764181927180,8.25267082,3035.3,3034.4,0.472]
[1764181927355,1.055704,3035.7,3035.2,0.6486]
[1764181927356,0.211,3035.7,3035.2,0.6486]
[1764181927659,0.72559411,3035.8,3035.3,0.472]
[1764181927860,0.72559411,3035.8,3035.2,0.6486]
[1764181928307,0.72559411,3035.6,3035.2,0.6486]
[1764181928792,0.72559411,3035.6,3035.3,0.472]
[1764181929095,3.29413314,3035.7,3035.2,0.6643]
[1764181929305,6.58826628,3035.7,3035.3,0.472]
[1764181929662,8.25267082,3035.4,3034.9,0.1923]
[1764181930094,9.88239942,3035.7,3035.3,0.4563]
[1764181930477,3.29413314,3035.7,3035.6,0.4563]
[1764181930663,3.29413314,3035.7,3034.9,0.1923]
[1764181930664,3.29413314,3035.7,3035.1,0.472]
[1764181930862,6.58826628,3035.7,3035.1,0.472]
[1764181931162,9.88239942,3035.7,3034.9,0.1923]
[1764181931508,0.72559411,3035.4,3034.9,0.1923]
[1764181931894,8.69187082,3035.0,3034.6,0.001]
[1764181932504,6.59000296,3034.9,3034.6,0.001]
[1764181932673,0.72559411,3034.8,3034.6,0.001]
[1764181932875,0.515504,3034.7,3034.6,0.001]
[1764181933079,0.951404,3034.7,3034.6,0.001]
[1764181933292,4.61548785,3034.7,3034.0,0.001]
[1764181933581,9.82296893,3034.1,3034.0,0.001]
[1764181933773,10.34105278,3034.1,3034.0,0.001]
[1764181934375,13.63692305,3034.1,3034.0,0.001]
[1764181934904,13.74692305,3034.1,3034.0,0.001]
[1764181935303,1.13109811,3034.0,3032.7,0.1923]
[1764181935475,8.25267082,3033.3,3032.7,0.1923]
[1764181935924,0.72559411,3032.8,3032.0,0.1923]
[1764181936207,0.72559411,3032.8,3032.1,0.4724]
[1764181936387,9.89119683,3033.0,3032.1,0.4724]
[1764181936572,8.25267082,3032.8,3032.1,0.4724]
[1764181937003,0.72559411,3032.3,3031.7,0.4724]
[1764181937205,0.93659411,3032.7,3032.2,0.4872]
[1764181937409,0.405504,3032.6,3032.1,0.1929]
[1764181937590,0.72559411,3032.3,3031.7,0.4724]
[1764181938200,0.93659411,3032.7,3032.2,0.6801]
[1764181938389,6.59456606,3032.8,3032.2,0.6801]
[1764181938589,0.72559411,3032.7,3032.2,0.4724]
[1764181938812,0.72559411,3032.7,3032.3,0.4724]
[1764181939222,0.72559411,3032.7,3032.1,0.1929]
[1764181939594,0.72559411,3032.7,3032.1,0.6653]
[1764181939995,14.84723688,3032.8,3032.6,0.4872]
[1764181939996,3.29728303,3032.8,3032.6,0.4872]
[1764181940198,4.02287714,3032.8,3032.7,0.4872]
[1764181940419,16.0385577,3032.8,3032.1,0.1929]
[1764181940720,16.0385577,3032.8,3032.1,0.6653]
[1764181940721,18.87011402,3032.8,3032.1,0.6653]
[1764181941431,18.87011402,3032.8,3032.2,0.4724]
[1764181941432,4.02287714,3032.8,3032.2,0.4724]
[1764181941722,7.32016017,3032.8,3032.2,0.4724]
[1764181942089,10.6174432,3032.8,3032.1,0.1929]
[1764181942287,10.6174432,3032.8,3032.2,0.4724]
[1764181942492,3.29793549,3032.2,3032.1,0.1929]
[1764181942732,6.59587098,3032.2,3031.3,0.211]
[1764181942908,6.59587098,3032.2,3031.7,0.4724]
[1764181943500,8.25267082,3032.3,3031.7,0.4724]
[1764181943708,7.72609909,3032.6,3032.2,0.6801]
[1764181943899,7.32059509,3032.6,3032.2,1.1525]
[1764181944408,7.32059509,3032.6,3031.8,0.4724]
[1764181944409,10.61809558,3032.6,3031.8,0.4724]
[1764181944603,10.61809558,3032.6,3031.1,0.211]
[1764181944604,8.25267082,3032.3,3031.1,0.211]
[1764181944898,8.25267082,3032.4,3031.2,0.4724]
[1764181946530,9.89348019,3032.3,3031.2,0.4724]
[1764181946712,6.59565346,3032.3,3031.2,0.4724]
[1764181947115,9.89348019,3032.3,3031.2,0.4724]
[1764181947319,0.405504,3032.2,3031.2,0.4724]
[1764181947520,9.89348019,3032.3,3031.2,0.4724]
[1764181948232,8.25267082,3032.0,3031.2,0.4724]
[1764181948602,9.8951118,3031.8,3031.0,0.1929]
[1764181948806,9.8951118,3031.8,3031.1,0.4724]
[1764181949338,9.8951118,3031.8,3031.1,0.4734]
[1764181949542,6.5967412,3031.8,3031.1,0.4734]
[1764181950208,3.29804425,3032.1,3031.7,0.4872]
[1764181950409,6.59521846,3032.5,3032.3,0.6801]
[1764181950611,0.211,3033.0,3032.3,0.6801]
[1764181950612,6.59456606,3032.8,3032.3,0.6801]
[1764181950813,9.89184909,3032.8,3032.4,0.4872]
[1764181951401,3.29728303,3032.8,3032.7,0.4872]
[1764181951921,3.29728303,3032.8,3032.7,0.9596]
[1764181952121,3.29728303,3032.8,3032.7,0.4872]
[1764181952326,6.59456606,3032.8,3032.3,0.6653]
[1764181952534,8.25267082,3032.7,3032.1,0.1929]
[1764181952831,9.89250147,3032.6,3032.1,0.1929]
[1764181953020,6.59500098,3032.6,3032.1,0.1929]
[1764181953208,4.0230946,3032.6,3032.5,0.4872]
[1764181953409,7.32059509,3032.6,3032.1,0.6653]
[1764181953609,7.32059509,3032.6,3032.2,0.4724]
[1764181954133,13.91559607,3032.6,3031.8,0.4724]
[1764181954342,0.30491672,3032.5,3031.1,0.001]
[1764181954503,0.72559411,3032.2,3031.2,0.6834]
[1764181954703,9.89413275,3032.1,3031.3,0.4724]
[1764181955615,3.29740189,3032.7,3032.0,0.4872]
[1764181955832,3.29740189,3032.7,3031.3,0.6834]
[1764181955833,8.25267082,3032.3,3031.3,0.6834]
[1764181956033,8.97826493,3032.7,3031.4,0.4724]
[1764181956239,8.25267082,3031.9,3031.3,0.4724]
[1764181956736,9.89445909,3032.0,3031.1,0.4734]
[1764181957326,13.19261212,3032.0,3031.1,0.4734]
[1764181958061,16.70176515,3032.0,3031.1,0.4734]
[1764181958211,0.72559411,3031.9,3031.1,0.4734]
[1764181958636,0.72559411,3031.7,3031.1,0.4734]
[1764181958820,6.5967412,3031.8,3031.1,0.4734]
[1764181959217,6.5967412,3031.8,3031.7,0.4822]
[1764181959218,3.2983706,3031.8,3031.7,0.4822]
[1764181959619,3.2983706,3031.8,3031.2,0.4724]
[1764181960226,3.2983706,3031.8,3031.1,0.001]
[1764181960227,0.72559411,3031.7,3031.1,0.001]
[1764181960426,9.60111666,3031.7,3031.1,0.001]
[1764181960744,0.72559411,3031.5,3031.1,0.001]
[1764181961120,0.72559411,3031.5,3031.1,0.4734]
[1764181961456,0.72559411,3031.5,3031.1,0.001]
[1764181961624,9.8957646,3031.6,3031.1,0.4734]
[1764181961943,3.2985882,3031.6,3031.5,0.4872]
[1764181962147,3.2985882,3031.6,3031.5,0.9596]
[1764181962722,3.29828727,3031.9,3031.1,0.001]
[1764181963046,0.72559411,3031.6,3031.1,0.001]
[1764181963218,0.30786406,3031.5,3031.1,0.001]
[1764181963419,1.16979411,3031.6,3031.1,0.001]
[1764181963736,0.30786379,3031.5,3031.1,0.001]
[1764181963940,0.30786379,3031.4,3031.1,0.001]
[1764181964168,0.30787226,3031.3,3031.1,0.001]
[1764181964347,0.93659411,3031.6,3031.1,0.001]
[1764181964553,0.30795485,3031.5,3031.1,0.001]
[1764181964717,3.29891465,3031.3,3031.1,0.001]
[1764181964923,0.30795485,3031.2,3031.1,0.001]
[1764181965119,3.29891465,3031.3,3031.2,0.932]
[1764181966956,3.29850032,3031.7,3031.2,0.932]
[1764181967154,0.30807865,3031.6,3031.3,0.4739]
[1764181967361,9.8951118,3031.8,3031.3,0.4739]
[1764181967652,0.30805368,3031.7,3031.3,0.4739]
[1764181967858,0.30805368,3031.6,3031.3,0.4739]
[1764181968060,9.8951118,3031.8,3031.3,0.4739]
[1764181968267,6.5967412,3031.8,3031.3,0.4739]
[1764181968764,3.2983706,3031.8,3031.7,0.4581]
[1764181969261,0.30802811,3031.8,3031.7,0.4581]
[1764181969461,6.59630606,3032.0,3031.7,0.4581]
[1764181969633,6.59630606,3032.0,3031.7,0.932]
[1764181969634,0.30803631,3031.9,3031.7,0.932]
[1764181969834,6.59630606,3032.0,3031.7,0.932]
[1764181970034,0.30802657,3031.9,3031.3,0.4739]
[1764181970338,0.30802657,3031.8,3031.3,0.4739]
[1764181970542,9.89445909,3032.0,3031.3,0.4739]
[1764181970744,0.30807904,3031.9,3031.3,0.4739]
[1764181970945,0.30807904,3031.8,3031.3,0.4739]
[1764181971163,13.19261212,3032.0,3031.3,0.4739]
[1764181971464,0.308127,3031.9,3031.3,0.4739]
[1764181971679,0.308127,3031.8,3031.1,0.001]
[1764181971837,8.66452255,3031.9,3031.1,0.4749]
[1764181972038,0.30812237,3031.8,3031.1,0.4749]
[1764181972259,8.66452255,3031.9,3031.1,0.4749]
[1764181972454,0.30817214,3031.8,3031.1,0.4749]
[1764181972662,0.30817214,3031.7,3031.1,0.4749]
[1764181972838,8.66452255,3031.9,3031.1,0.4749]
[1764181973041,6.5969588,3031.7,3031.1,0.4749]
[1764181973458,3.2984794,3031.7,3031.6,0.4581]
[1764181973659,3.60667193,3031.7,3031.6,0.4581]
[1764181973959,3.2984794,3031.7,3031.6,0.932]
[1764181975247,0.72559411,3031.9,3031.6,0.932]
[1764181975481,0.3082274,3031.8,3031.7,0.932]
[1764181975792,0.3082274,3031.8,3031.1,0.001]
[1764181975793,0.3082274,3031.8,3031.2,0.4739]
[1764181975977,6.59630606,3032.0,3031.7,0.4581]
[1764181976177,0.30822616,3031.9,3031.7,0.4581]
[1764181976385,9.89445909,3032.0,3031.1,0.001]
[1764181976386,9.08244871,3031.8,3031.1,0.001]
[1764181976585,0.30825258,3031.7,3031.2,0.4739]
[1764181976767,8.66452255,3031.8,3031.2,0.4739]
[1764181976970,0.30825375,3031.7,3031.2,0.4739]
[1764181977275,9.8954382,3031.7,3031.2,0.4739]
[1764181978285,9.8954382,3031.7,3030.6,0.93659411]
[1764181978587,13.1939176,3031.7,3030.7,0.1824]
[1764181978788,9.8954382,3031.7,3030.7,0.1824]
[1764181978995,3.2984794,3031.7,3031.6,0.4581]
[1764181979171,3.60675159,3031.7,3031.6,0.4581]
[1764181979372,10.20371039,3031.7,3030.7,0.1824]
[1764181979573,3.2984794,3031.7,3031.6,0.4581]
[1764181980285,6.5969588,3031.7,3031.2,0.4739]
[1764181980599,3.29842382,3031.8,3031.6,0.4581]
[1764181980800,3.29842382,3031.8,3031.7,0.4739]
[1764181981002,3.29842382,3031.8,3031.7,0.4581]
[1764181981301,0.72559411,3032.4,3031.7,0.932]
[1764181981480,9.89290377,3032.5,3031.0,0.05]
[1764181981481,6.5952565,3032.5,3032.3,0.1283]
[1764181981689,3.29760923,3032.5,3032.4,0.4581]
[1764181982086,3.29760923,3032.5,3032.4,0.932]
[1764181982577,3.29760923,3032.5,3032.4,0.4581]
[1764181983288,3.29742424,3032.7,3032.4,0.4581]
[1764181983695,3.29742424,3032.7,3032.0,0.1824]
[1764181983905,9.89184909,3032.8,3032.1,0.6232]
[1764181984204,9.89184909,3032.8,3032.7,0.4581]
[1764181984205,3.29728303,3032.8,3032.7,0.4581]
[1764181984574,9.89184909,3032.8,3032.3,0.4739]
[1764181984775,3.29728303,3032.8,3032.7,0.4581]
[1764181984973,9.89184909,3032.8,3032.3,0.4739]
[1764181985171,0.002,3032.5,3032.1,0.1493]
[1764181985802,0.002,3032.5,3031.9,0.4739]
[1764181986204,0.002,3032.5,3031.7,0.1824]
[1764181986406,0.002,3032.5,3031.7,0.6588]
[1764181986903,0.30815195,3032.4,3031.7,0.6588]
[1764181987110,0.30815195,3032.3,3031.8,0.4764]
[1764181987300,0.002,3032.5,3031.8,0.4764]
[1764181987477,0.30812355,3032.4,3031.8,0.4764]
[1764181987674,0.002,3032.5,3031.8,0.4764]
[1764181987876,8.66452255,3032.3,3031.8,0.4764]
[1764181988685,8.66452255,3032.3,3032.2,0.4723]
[1764181989110,8.66452255,3032.3,3031.8,0.4764]
[1764181989325,9.15202255,3032.3,3031.7,0.1824]
[1764181989618,8.81302255,3031.8,3031.3,0.1801]
[1764181989823,8.81302255,3031.8,3031.3,0.6565]
[1764181989979,8.81302255,3031.8,3031.0,0.001]
[1764181989980,8.81302255,3031.8,3031.1,0.1801]
[1764181990179,8.66452255,3031.8,3031.1,0.6565]
[1764181990431,8.66452255,3031.8,3031.7,0.4723]
[1764181990623,6.80687098,3032.2,3031.7,0.9487]
[1764181990822,3.29793549,3032.2,3032.1,0.6263]
[1764181991118,3.29793549,3032.2,3032.1,1.1027]
[1764181991318,9.89380647,3032.2,3031.7,0.4764]
[1764181991510,10.61874802,3032.4,3031.7,0.4764]
[1764181992699,9.89315391,3032.4,3031.7,0.4764]
[1764181993624,13.19087188,3032.4,3031.5,0.4764]
[1764181994044,8.66452255,3032.1,3031.5,0.4764]
[1764181995255,8.66452255,3031.6,3031.1,0.1801]
[1764181995407,6.59739402,3031.5,3031.1,0.1801]
[1764181995723,6.59739402,3031.5,3031.2,0.4875]
[1764181996430,3.29869701,3031.5,3031.4,0.4509]
[1764181996800,3.29869701,3031.5,3031.4,0.9384]
[1764181997005,3.29869701,3031.5,3031.4,0.4509]
[1764181997200,0.211,3032.0,3031.4,0.9384]
[1764181997201,3.29826181,3031.9,3031.4,0.9384]
[1764181997516,3.29826181,3031.9,3031.1,0.1801]
[1764181997517,9.89445909,3032.0,3031.1,0.1801]
[1764181997717,9.89445909,3032.0,3031.2,0.4875]
[1764181997718,10.39175909,3032.0,3031.2,0.4875]
[1764181999326,0.72559411,3031.9,3031.2,0.4875]
[1764181999530,6.5967412,3031.8,3031.2,0.4875]
[1764181999734,6.5967412,3031.8,3031.7,0.4509]
[1764181999735,3.2983706,3031.8,3031.7,0.4509]
[1764181999937,3.2983706,3031.8,3031.2,0.4875]
[1764181999938,9.8951118,3031.8,3031.2,0.4875]
[1764182000404,9.8951118,3031.8,3031.1,0.1801]
[1764182000737,9.8951118,3031.8,3031.1,0.6676]
[1764182001035,9.8951118,3031.8,3031.1,0.1801]
[1764182001036,13.1934824,3031.8,3031.1,0.1801]
[1764182001223,13.1934824,3031.8,3031.0,0.001]
[1764182001224,8.66452255,3031.5,3031.0,0.001]
[1764182001535,9.89641749,3031.4,3031.1,0.1267]
[1764182001738,9.89641749,3031.4,3031.0,0.001]
[1764182001940,10.39371749,3031.4,3031.0,0.001]
[1764182002433,0.72559411,3031.3,3031.0,0.001]
[1764182002739,0.4652,3031.1,3031.0,0.001]
[1764182003533,4.26163232,3031.1,3031.0,0.001]
[1764182004117,4.26163232,3031.1,3030.7,0.001]
[1764182004119,11.79649107,3031.1,3030.7,0.001]
[1764182004433,9.03152255,3030.8,3030.7,0.001]
[1764182004839,10.56252488,3030.8,3030.7,0.001]
[1764182005036,9.83693077,3030.8,3030.7,0.001]
[1764182005242,10.56252488,3030.8,3030.7,0.001]
[1764182005615,13.86198376,3030.8,3030.7,0.001]
[1764182005842,13.16958376,3030.8,3030.7,0.001]
[1764182006022,12.68957554,3030.8,3030.7,0.001]
[1764182006220,4.02505299,3030.8,3030.7,0.001]
[1764182006929,3.76465888,3030.8,3030.7,0.001]
[1764182007123,3.29945888,3030.8,3030.7,0.4519]
[1764182007654,0.1951,3031.3,3030.7,0.4519]
[1764182007655,6.59848234,3031.0,3030.7,0.4519]
[1764182007824,3.29924117,3031.0,3030.9,0.4509]
[1764182008344,7.06368234,3031.0,3030.7,0.001]
[1764182008509,6.59848234,3031.0,3030.7,0.001]
[1764182009717,6.59826464,3031.1,3030.7,0.4885]
[1764182010055,0.4652,3030.8,3030.7,0.001]
[1764182010420,1.89909411,3030.8,3030.7,0.001]
[1764182011122,1.89909411,3030.8,3030.5,0.001]
[1764182011123,2.30459811,3030.8,3030.5,0.001]
[1764182011321,9.82332066,3030.6,3030.5,0.001]
[1764182011756,13.62029729,3030.6,3030.5,0.001]
[1764182012127,13.21479329,3030.6,3030.5,0.001]
[1764182012525,4.02527074,3030.6,3030.5,0.001]
[1764182013083,3.29967663,3030.6,3030.5,0.9394]
[1764182013644,6.59891776,3030.8,3030.5,0.4519]
[1764182013849,6.59891776,3030.8,3030.5,0.001]
[1764182014047,0.4652,3030.6,3030.5,0.001]
[1764182014222,0.72559411,3030.7,3030.5,0.001]
[1764182015049,6.59891776,3030.8,3030.6,0.9384]
[1764182015217,6.59891776,3030.8,3030.5,0.001]
[1764182016530,6.59891776,3030.8,3030.5,0.4885]
[1764182016726,3.29945888,3030.8,3030.7,0.4509]
[1764182016935,6.59761166,3031.4,3030.7,0.4509]
[1764182017131,9.89641749,3031.4,3030.8,0.4509]
[1764182017528,9.89641749,3031.4,3030.8,0.9384]
[1764182017846,6.59761166,3031.4,3030.8,0.9384]
[1764182018224,3.29880583,3031.4,3031.3,0.6458]
[1764182018654,3.29826181,3031.9,3031.3,1.1333]
[1764182018952,3.29826181,3031.9,3031.5,0.4509]
[1764182019124,6.59652362,3031.9,3031.5,0.9384]
[1764182019857,3.29826181,3031.9,3031.8,0.4509]
[1764182020059,6.59652362,3031.9,3031.6,0.4875]
[1764182020425,6.5960885,3032.1,3031.6,0.4875]
[1764182020732,9.89413275,3032.1,3031.6,0.4875]
[1764182021055,9.89413275,3032.1,3031.3,0.6824]
[1764182021629,9.89413275,3032.1,3031.3,0.1949]
[1764182021855,9.89413275,3032.1,3031.4,0.4875]
[1764182022051,0.002,3032.5,3032.0,0.4509]
[1764182022227,0.002,3032.5,3031.4,0.4875]
[1764182022228,3.29773162,3032.4,3032.1,1.1333]
[1764182022424,6.59546324,3032.4,3032.1,1.1333]
[1764182022625,7.32281257,3032.5,3032.3,0.4509]
[1764182023151,7.32281257,3032.5,3031.5,3.29865279]
[1764182023152,0.9625,3032.4,3031.8,0.1949]
[1764182023322,0.0277,3032.3,3031.8,0.1949]
[1764182023741,10.6204218,3032.5,3031.8,0.6824]
[1764182024756,8.28079247,3032.2,3031.3,0.6452]
[1764182024957,8.28079247,3032.2,3031.3,0.8562]
[1764182025151,8.28079247,3032.2,3031.4,0.4503]
[1764182025362,8.28079247,3032.2,3031.3,0.1949]
[1764182025363,8.28079247,3031.8,3031.3,0.1949]
[1764182025852,8.28079247,3031.8,3031.3,0.6452]
[1764182026253,0.4531,3032.2,3031.7,0.495]
[1764182026254,8.28079247,3032.2,3031.7,0.495]
[1764182026755,6.5960885,3032.1,3031.4,0.4503]
[1764182026942,9.89413275,3032.1,3031.4,0.4503]
[1764182027537,9.89413275,3032.1,3031.3,0.1949]
[1764182028556,9.89413275,3032.1,3031.1,0.6613]
[1764182028557,8.28079247,3031.8,3031.1,0.4503]
[1764182028760,9.8954382,3031.7,3031.1,0.4503]
[1764182028968,6.5969588,3031.7,3031.1,0.6339]
[1764182029256,3.2984794,3031.7,3031.6,0.495]
[1764182029564,6.5969588,3031.7,3031.2,0.4503]
[1764182029758,3.49262735,3031.9,3031.2,0.4503]
[1764182030060,6.7909547,3031.9,3031.2,0.4503]
[1764182030857,6.59630606,3032.0,3031.8,0.495]
[1764182031026,3.29815303,3032.0,3031.9,0.495]
[1764182031229,3.29790136,3032.3,3031.9,0.495]
[1764182031430,3.29965952,3032.5,3032.0,0.495]
[1764182031737,6.59731904,3032.5,3032.2,0.495]
[1764182031948,3.29965952,3032.5,3032.4,0.495]
[1764182032366,3.29965952,3032.5,3032.4,0.9453]
[1764182032878,0.002,3032.5,3032.4,0.9453]
[1764182033376,0.002,3032.5,3032.4,0.495]
[1764182033879,0.4879,3032.5,3031.7,0.4503]
[1764182034085,0.4879,3032.5,3031.8,0.4503]
[1764182034582,0.002,3032.5,3031.8,0.4503]
[1764182035082,0.002,3032.5,3031.8,0.6613]
[1764182035266,8.28079247,3032.4,3031.8,0.6613]
[1764182035468,8.28079247,3032.4,3031.2,3.29901849]
[1764182035766,8.28079247,3032.4,3031.6,0.211]
[1764182036276,8.28079247,3032.4,3031.5,0.4503]
[1764182036479,0.002,3032.5,3032.3,0.495]
[1764182037394,0.002,3032.5,3032.0,0.4503]
[1764182039082,8.73389247,3032.4,3031.7,0.211]
[1764182039255,6.59565346,3032.3,3031.7,0.211]
[1764182039457,6.59565346,3032.3,3031.7,0.6613]
[1764182039874,9.89348019,3032.3,3031.1,0.1836]
[1764182040077,8.28079247,3032.0,3031.2,0.6613]
[1764182040381,8.28079247,3032.0,3031.1,0.1836]
[1764182040581,0.6474,3031.9,3031.1,0.1836]
[1764182040771,8.28079247,3032.0,3031.2,0.4503]
[1764182040973,0.211,3032.1,3031.2,0.4503]
[1764182041293,8.28079247,3031.9,3031.1,0.1836]
[1764182041462,6.5969588,3031.7,3031.1,0.1836]
[1764182041883,3.2984794,3031.7,3031.1,0.6339]
[1764182042069,0.1943,3031.9,3031.1,0.6339]
[1764182042391,8.47509247,3031.9,3031.1,0.6339]
[1764182042756,8.28079247,3031.9,3031.2,0.4503]
[1764182042955,9.89413275,3032.1,3031.8,0.495]
[1764182042956,6.5960885,3032.1,3031.8,0.495]
[1764182043756,6.5960885,3032.1,3031.5,0.211]
[1764182044183,9.89413275,3032.1,3031.5,0.211]
[1764182044389,9.89413275,3032.1,3031.3,0.211]
[1764182044390,6.5960885,3032.1,3031.3,0.211]
[1764182044600,6.5960885,3032.1,3031.6,0.4503]
[1764182045154,9.89413275,3032.1,3031.3,0.211]
[1764182045472,3.29804425,3032.1,3031.3,0.6613]
[1764182045686,6.59587098,3032.2,3031.3,3.96018755]
[1764182045886,3.29793549,3032.2,3032.1,0.4863]
[1764182046688,6.59587098,3032.2,3031.6,0.4858]
[1764182049795,6.59587098,3032.2,3031.6,0.6968]
[1764182052081,6.59587098,3032.2,3031.2,0.05]
[1764182052082,9.89380647,3032.2,3031.2,0.77559411]
[1764182052283,3.29793549,3032.2,3031.3,0.211]
[1764182052491,3.29793549,3032.2,3032.1,0.4863]
[1764182052668,3.29783473,3032.3,3032.1,0.4863]
[1764182052868,0.4582,3032.2,3031.3,0.211]
[1764182053099,0.4582,3032.2,3031.4,0.6968]
[1764182053478,0.4582,3032.2,3031.5,0.4858]
[1764182053479,8.73899247,3032.2,3031.5,0.4858]
[1764182053793,6.5960885,3032.1,3031.4,0.211]
[1764182053992,6.5960885,3032.1,3031.2,0.05]
[1764182054177,0.478,3032.0,3031.1,0.1836]
[1764182054374,0.478,3032.0,3030.8,0.05]
[1764182054375,8.28079247,3031.8,3030.8,0.05]
[1764182054580,8.28079247,3031.8,3031.0,0.7074]
[1764182054901,8.28079247,3031.8,3031.1,0.189]
[1764182055099,8.28079247,3031.8,3031.1,0.6854]
[1764182055274,3.29804425,3032.1,3031.7,0.4875]
[1764182055479,6.5960885,3032.1,3031.8,0.4875]
[1764182055676,3.29796304,3032.2,3031.8,0.4875]
[1764182055995,3.29796304,3032.2,3031.1,3.48812357]
[1764182055996,0.4987,3031.9,3031.3,0.4964]
[1764182056183,0.4987,3031.9,3031.4,0.211]
[1764182057067,0.6838,3031.9,3031.4,0.211]
[1764182057274,1.1618,3031.9,3031.4,0.211]
[1764182057477,0.1851,3031.9,3031.4,0.211]
[1764182057675,3.29826181,3031.9,3031.4,0.211]
[1764182057911,6.59652362,3031.9,3031.4,0.7074]
[1764182058085,3.29826181,3031.9,3031.4,0.7074]
[1764182058281,6.59652362,3031.9,3031.5,0.4964]
[1764182058481,6.59652362,3031.9,3031.4,0.211]
[1764182058482,3.29826181,3031.9,3031.4,0.7074]
[1764182058687,3.29826181,3031.9,3031.8,0.4875]
[1764182059206,6.59652362,3031.9,3031.5,0.4964]
[1764182059380,6.59652362,3031.9,3031.3,0.211]
[1764182059580,6.78162362,3031.9,3031.3,0.211]
[1764182060111,6.59642117,3032.0,3031.8,0.4875]
[1764182060315,6.59641176,3032.0,3031.8,0.4875]
[1764182060974,0.9767,3031.9,3031.1,0.189]
[1764182061300,0.4987,3031.9,3031.2,0.7074]
[1764182061622,0.4987,3031.9,3031.3,0.211]
[1764182061623,0.6838,3031.9,3031.3,0.211]
[1764182062103,0.6838,3031.9,3031.2,0.4964]
[1764182062104,6.5967412,3031.8,3031.2,0.4964]
[1764182062405,7.0747412,3031.8,3031.1,0.4]
[1764182062584,10.3731118,3031.8,3031.1,0.4]
[1764182062909,10.3731118,3031.8,3031.1,0.211]
[1764182062910,0.478,3031.7,3031.1,0.211]
[1764182063298,8.28079247,3031.6,3031.1,0.211]
[1764182063696,0.478,3031.5,3031.1,0.211]
[1764182064791,3.29880583,3031.4,3031.0,0.211]
[1764182065394,6.59761166,3031.4,3031.0,0.211]
[1764182065887,6.59761166,3031.4,3030.6,4.02622341]
[1764182065888,0.4987,3031.1,3030.6,0.001]
[1764182066091,8.28079247,3031.2,3030.6,0.001]
[1764182066398,0.4987,3030.7,3030.6,0.001]
[1764182066898,3.79826775,3030.7,3030.6,0.001]
[1764182067098,4.27626775,3030.7,3030.6,0.001]
[1764182068410,0.1851,3031.0,3030.6,0.4885]
[1764182068719,6.78360766,3031.0,3030.6,0.4885]
[1764182068900,6.59850766,3031.0,3030.7,0.4964]
[1764182069089,6.59850766,3031.0,3030.6,0.001]
[1764182069515,7.07650766,3031.0,3030.6,0.001]
[1764182069717,3.77725383,3031.0,3030.6,0.001]
[1764182070032,7.07650766,3031.0,3030.6,0.001]
[1764182070229,6.59850766,3031.0,3030.6,0.001]
[1764182070533,8.77949247,3030.7,3030.6,0.001]
[1764182070739,0.72559411,3031.1,3030.6,0.001]
[1764182071040,0.72559411,3031.1,3030.6,0.4885]
[1764182071337,0.4987,3030.7,3030.6,0.001]
[1764182071516,0.9767,3030.7,3030.6,0.001]
[1764182072814,5.00186186,3030.7,3030.6,0.001]
[1764182073404,0.405504,3030.5,3030.4,0.001]
[1764182073610,3.29946278,3030.8,3030.4,0.001]
[1764182073611,0.211,3030.8,3030.4,0.001]
[1764182074239,0.72559411,3030.9,3030.4,0.001]
[1764182074407,3.29924117,3031.0,3030.4,0.4974]
[1764182074739,14.87928241,3031.0,3030.4,0.001]
[1764182075047,0.211,3031.3,3030.9,0.4875]
[1764182075048,6.5978293,3031.3,3030.9,0.4875]
[1764182075504,9.89674395,3031.3,3030.9,0.4875]
[1764182075708,6.5978293,3031.3,3030.9,0.4875]
[1764182076036,10.37474395,3031.3,3030.5,0.4964]
[1764182076234,7.0758293,3031.3,3030.5,0.4964]
[1764182076405,6.5978293,3031.3,3030.5,0.4964]
[1764182076824,3.29891465,3031.3,3030.5,0.7074]
[1764182077033,6.5976598,3031.4,3030.5,0.7074]
[1764182077211,6.5976598,3031.4,3030.6,0.4964]
[1764182077538,10.3744897,3031.4,3030.6,0.4964]
[1764182077838,9.8964897,3031.4,3030.6,0.4964]
[1764182078036,13.6733196,3031.4,3030.6,0.4964]
[1764182078338,8.28079247,3031.1,3030.5,0.211]
[1764182078634,0.4987,3030.6,3030.4,0.001]
[1764182078837,0.0202,3030.5,3030.4,0.001]
[1764182080006,6.59870004,3030.9,3030.4,0.4885]
[1764182080228,9.89805006,3030.9,3030.5,0.4964]
[1764182080538,10.37605006,3030.9,3030.4,0.001]
[1764182081039,3.29978551,3030.5,3030.4,0.001]
[1764182081540,3.29978551,3030.5,3030.4,0.4885]
[1764182082239,3.29978551,3030.5,3030.4,0.9849]
[1764182082537,3.29978551,3030.5,3030.4,0.001]
[1764182083006,6.5991355,3030.7,3030.4,0.001]
[1764182084234,3.29907192,3031.2,3030.6,0.4829]